lending/lending_fUSD_20250808
["ID","MTS","AMOUNT","RATE_DAILY","PERIOD"]
[377969024,1754634646811,-400.0,0.0001888,2]
[377969025,1754634646820,-986.27,0.0001888,2]
[377969026,1754634646829,-460.32,0.0001888,2]
[377969027,1754634646838,-1361.43,0.0001888,2]
[377969028,1754634646847,-943.3,0.0001888,2]
[377969029,1754634646856,-3053.79,0.0001888,2]
[377969030,1754634646866,-3053.79,0.0001888,2]
[377969031,1754634646875,-400.0,0.0001888,2]
[377969032,1754634646884,-1193.24,0.0001888,2]
[377969033,1754634646893,-400.0,0.0001888,2]
[377969034,1754634646905,-1338.8,0.0001888,2]
[377969035,1754634646914,-400.0,0.0001888,2]
[377969036,1754634646923,-400.0,0.0001888,2]
[377969037,1754634646932,-792.14,0.0001888,2]
[377969038,1754634646941,-400.0,0.0001888,2]
[377969039,1754634646950,-400.0,0.0001888,2]
[377969040,1754634646959,-1007.22,0.0001888,2]
[377969041,1754634646968,-400.0,0.0001888,2]
[377969042,1754634646977,-1067.06,0.0001888,2]
[377969043,1754634646987,-400.0,0.0001888,2]
[377969044,1754634646995,-542.08,0.0001888,2]
[377969045,1754634647004,-400.0,0.0001888,2]
[377969046,1754634647013,-726.12,0.0001888,2]
[377969047,1754634647023,-461.8,0.0001888,2]
[377969048,1754634647031,-541.06,0.0001888,2]
[377969049,1754634647040,-400.0,0.0001888,2]
[377969050,1754634647049,-764.43,0.0001888,2]
[377969051,1754634647059,-400.0,0.0001888,2]
[377969052,1754634647067,-1579.06,0.0001888,2]
[377969053,1754634647077,-796.39,0.0001888,2]
[377969054,1754634647086,-795.92,0.0001888,2]
[377969055,1754634647096,-403.6,0.0001888,2]
[377969056,1754634647105,-430.2,0.0001888,2]
[377969057,1754634647114,-525.11,0.0001888,2]
[377969058,1754634647123,-1306.04,0.0001888,2]
[377969059,1754634647132,-400.0,0.0001888,2]
[377969060,1754634647141,-571.0,0.0001888,2]
[377969061,1754634647150,-400.0,0.0001888,2]
[377969062,1754634647160,-1339.47,0.0001888,2]
[377969063,1754634647169,-400.0,0.0001888,2]
[377969064,1754634647180,-400.0,0.0001888,2]
[377969065,1754634647190,-770.44,0.0001888,2]
[377969066,1754634647201,-1255.32,0.0001888,2]
[377969067,1754634647210,-400.0,0.0001888,2]
[377969068,1754634647220,-1607.48,0.0001888,2]
[377969069,1754634647229,-713.11,0.0001888,2]
[377969070,1754634647239,-645.92,0.0001888,2]
[377969071,1754634647248,-596.4,0.0001888,2]
[377969072,1754634647259,-271.03283174,0.0001888,2]
[377969073,1754634647268,-495.13,0.0001888,2]
[377969074,1754634647277,-400.0,0.0001888,2]
[377969075,1754634647286,-1019.14,0.0001888,2]
[377969076,1754634647295,-1107.14,0.0001888,2]
[377969077,1754634647304,-834.13,0.0001888,2]
[377969078,1754634647315,-1497.47,0.0001888,2]
[377969079,1754634647325,-400.0,0.0001888,2]
[377969080,1754634647334,-760.84,0.0001888,2]
[377969081,1754634647343,-506.74,0.0001888,2]
[377969082,1754634647354,-814.41,0.00018881,2]
[377969083,1754634647364,-460.02,0.00018881,2]
[377969084,1754634647372,-1084.72,0.00018881,2]
[377969085,1754634647382,-495.53343923,0.000189,2]
[377969086,1754634647392,-265.9974805,0.000189,3]
[377969087,1754634647403,-3794.1993939,0.000189,2]
[377969088,1754634647413,-4920.04341634,0.000189,2]
[377969089,1754634647423,-3794.19939386,0.00018904,2]
[377969090,1754634647434,-3794.19939386,0.00018908,2]
[377969091,1754634647445,-3794.19939386,0.00018913,2]
[377969092,1754634647455,-3794.19939386,0.00018917,2]
[377969093,1754634647468,-214.34,0.00018919,2]
[377969094,1754634647478,-3794.19939386,0.00018921,2]
[377969095,1754634647489,-401.62511772,0.00018921,2]
[377969096,1754634647499,-500.0,0.00018973,2]
[377969097,1754634647510,-500.0,0.00018973,2]
[377969098,1754634647520,-501.13444185,0.00018973,2]
[377969099,1754634647531,-519.87176113,0.00018973,2]
[377969100,1754634647542,-500.0,0.00018973,2]
[377969101,1754634647552,-500.0,0.00018973,2]
[377969102,1754634647563,-500.0,0.00018973,2]
[377969103,1754634647579,-150.0,0.00018981,2]
[377969104,1754634647590,-700.70652427,0.00018982,2]
[377969105,1754634647601,-893.05733485,0.00018983,2]
[377969106,1754634647612,-1085.40814543,0.00018984,2]
[377969107,1754634647622,-668.837,0.00018985,2]
[377969108,1754634647633,-1277.75895601,0.00018985,2]
[377969109,1754634647644,-1470.1097666,0.00018986,2]
[377969110,1754634647655,-1662.46057718,0.00018987,2]
[377969111,1754634647666,-1854.81138776,0.00018988,2]
[377969112,1754634647677,-2047.16219834,0.00018989,2]
[377969113,1754634647688,-2239.51300892,0.0001899,2]
[377969114,1754634647699,-637.32,0.00018999,2]
[377969115,1754634647709,-2062.02,0.00018999,2]
[377969116,1754634647719,-1558.7,0.00018999,2]
[377969117,1754634647730,-400.0,0.00018999,2]
[377969118,1754634647740,-1354.9,0.00018999,2]
[377969119,1754634647750,-455.42,0.00018999,2]
[377969120,1754634647760,-7079.19,0.00018999,2]
[377969121,1754634647773,-1152.03,0.00018999,2]
[377969122,1754634647783,-1866.69,0.00018999,2]
[377969123,1754634647793,-1245.37,0.00018999,2]
[377969124,1754634647803,-1622.12,0.00018999,2]
[377969125,1754634647812,-2587.72,0.00018999,2]
[377969126,1754634647825,-1161.58,0.00018999,2]
[377969127,1754634647836,-479.11,0.00018999,2]
[377969128,1754634647845,-2200.44,0.00018999,2]
[377969129,1754634647855,-1463.01,0.00018999,2]
[377969130,1754634647866,-400.0,0.00018999,2]
[377969131,1754634647876,-1225.65,0.00018999,2]
[377969132,1754634647886,-974.34,0.00018999,2]
[377969133,1754634647896,-621.67,0.00018999,2]
[377969134,1754634647906,-1495.76,0.00018999,2]
[377969135,1754634647916,-3445.31,0.00018999,2]
[377969136,1754634647926,-1360.03,0.00018999,2]
[377969137,1754634647935,-1334.35764237,0.00019,2]
[377969138,1754634647944,-948.52,0.00019,2]
[377969139,1754634647954,-2143796.90674165,0.00019,2]
[377969140,1754634648562,-683.89,0.0001878,2]
[377969141,1754634648573,-481.61,0.00019,2]
[377969142,1754634649244,-400.0,0.0001878,2]
[377969143,1754634649254,-12431.25661932,0.00019,2]
[377969144,1754634649272,-235086.30534082,0.00019,2]
[377969145,1754634649283,-655.28295906,0.00019,2]
[377969146,1754634649319,-8587.1606801,0.00019,2]
[377969147,1754634649484,-4504.77909941,0.00019,2]
[377969148,1754634649496,-500.53315235,0.00019,2]
[377969149,1754634649507,-1750.1798,0.00019,2]
[377969150,1754634649655,-62.12388867,0.00019,2]
[377969151,1754634649667,-1260.51020135,0.00019,2]
[377969152,1754634649678,-419.77238971,0.00019,2]
[377969153,1754634649692,-52584.31819445,0.00019,2]
[377969154,1754634650431,-1401.70833806,0.000189,2]
[377969155,1754634650442,-2346452.96116594,0.00019,2]
[377969156,1754634650454,-1087.34876115,0.00019,2]
[377969157,1754634650465,-1341.82667273,0.00019,2]
[377969158,1754634650476,-17283.65866151,0.00019,2]
[377969159,1754634650983,-206.38958388,0.00018779,2]
[377969160,1754634650992,-135.10294825,0.00019,2]
[377969161,1754634651004,-267.777,0.00019,2]
[377969162,1754634651101,-81413.84245836,0.00019,2]
[377969163,1754634651120,-201337.98792535,0.00019,2]
[377969164,1754634651130,-4664.0,0.00019,2]
[377969166,1754634778500,13909.6,0.00017882,2]
[377969167,1754634781812,361.96739308,0.000301,120]
[377969168,1754634782072,309.04,0.00015068,2]
[377969169,1754634782294,309.04,0.00016658,2]
[377969170,1754634854797,-379.22886467,0.00018044,2]
[377969171,1754634857533,-263.93460475,0.00018044,2]
[377969172,1754634862190,-156.77126013,0.00018044,2]
[377969174,1754634865233,-157.5548096,0.00018044,2]
[377969175,1754634869621,-163.81286783,0.00018044,2]
[377969176,1754634872208,-210.27269161,0.00018044,2]
[377969181,1754634875721,-300.72730839,0.00018044,2]
[377969184,1754634879917,-356.58695392,0.00018044,2]
[377969185,1754634882620,-245.16807508,0.00018044,2]
[377969186,1754634885336,-99.32906702,0.00018044,2]
[377969189,1754635051006,188.0,0.000174,2]
[377969190,1754635058993,666.0,0.00017836,3]
[377969193,1754635125994,500.0,0.00017135,2]
[377969200,1754635298329,175.0,0.0001775,7]
[377969202,1754635337513,177.09,0.00017752,2]
[377969203,1754635347776,152.97,0.00017752,2]
[377969206,1754635515649,150.0,0.00017088,2]
[377969207,1754635563680,1000.0,0.00017788,2]
[377969212,1754635582450,184.0,0.000164,2]
[377969213,1754635582855,180.0,0.0001758,2]
[377969220,1754635706935,319.81,0.00015068,2]
[377969221,1754635707146,319.81,0.00016652,2]
[377969227,1754635729630,271.63,0.00013699,2]
[377969228,1754635731607,-163.81286783,0.00018009,2]
[377969232,1754635754363,170.93,0.00017738,2]
[377969248,1754635831479,-250.0,0.00018109,2]
[377969249,1754635831490,-319.81,0.00018235,2]
[377969250,1754635831500,-200.0,0.000184,6]
[377969251,1754635831509,-500.0,0.000185,6]
[377969252,1754635831519,-700.0,0.000186,6]
[377969253,1754635831528,-160.0,0.0001867,2]
[377969254,1754635831538,-299.8319358,0.0001867,2]
[377969255,1754635831548,-151.0,0.0001867,2]
[377969256,1754635831557,-267.46074303,0.0001867,2]
[377969257,1754635831567,-608.15982708,0.00018676,2]
[377969258,1754635831584,-591.84017292,0.00018676,2]
[377969259,1754635831593,-194.25925949,0.00018677,2]
[377969260,1754635831606,-105.74074051,0.00018677,2]
[377969261,1754635831616,-2820.734,0.00018678,2]
[377969262,1754635831625,-1200.0,0.00018678,2]
[377969263,1754635831635,-155.36964721,0.0001868,2]
[377969264,1754635831645,-1938.21011273,0.0001868,2]
[377969265,1754635831656,-784.71721396,0.0001868,2]
[377969266,1754635831702,-812.9292,0.0001868,2]
[377969267,1754635831781,-478.58019851,0.0001868,2]
[377969268,1754635831802,-503.57763178,0.0001868,2]
[377969269,1754635831823,-410.18768663,0.0001868,2]
[377969270,1754635831837,-231.24124304,0.0001868,2]
[377969271,1754635831848,-165.81437329,0.0001868,2]
[377969272,1754635831858,-3262.39341506,0.00018681,2]
[377969273,1754635831893,-2157.53786174,0.00018681,2]
[377969274,1754635831905,-3052.02057124,0.00018681,2]
[377969275,1754635831916,-2116.47761691,0.00018681,2]
[377969295,1754635838114,-473.71422215,0.00018681,2]
[377969308,1754635839513,-1009.56622242,0.00018681,2]
[377969309,1754635839526,-1098.10677519,0.00018681,2]
[377969310,1754635839755,-135.10714958,0.00018681,2]
[377969311,1754635839821,-1456.48818324,0.00018681,2]
[377969324,1754635842893,-500.0,0.00018681,2]
[377969325,1754635842905,-3659.21620994,0.00018681,2]
[377969333,1754635845962,-308.98992074,0.00018681,2]
[377969334,1754635845974,-15245.20255179,0.00018681,2]
[377969335,1754635845984,-1213.0,0.000187,2]
[377969336,1754635845993,-1000.0,0.000187,6]
[377969337,1754635846003,-178.34953226,0.000187,2]
[377969338,1754635846012,-5159.44328656,0.00018704,2]
[377969339,1754635846021,-5159.44328656,0.00018729,2]
[377969340,1754635846031,-571.65,0.00018751,2]
[377969341,1754635846040,-500.0,0.00018752,2]
[377969342,1754635846050,-500.0,0.00018752,2]
[377969343,1754635846059,-178.34,0.00018753,2]
[377969344,1754635846069,-5159.44328656,0.00018753,2]
[377969345,1754635846078,-177.0,0.0001877,2]
[377969346,1754635846087,-500.0,0.00018773,2]
[377969347,1754635846096,-500.0,0.00018773,2]
[377969348,1754635846107,-5159.44328656,0.00018778,2]
[377969349,1754635846119,-400.0,0.00018779,2]
[377969350,1754635846129,-457.8,0.00018779,2]
[377969351,1754635846138,-525.45,0.00018779,2]
[377969352,1754635846148,-400.0,0.00018779,2]
[377969353,1754635846157,-400.0,0.00018779,2]
[377969354,1754635846167,-400.0,0.00018779,2]
[377969355,1754635846176,-400.0,0.00018779,2]
[377969356,1754635846187,-455.72404985,0.00018779,2]
[377969357,1754635846198,-400.0,0.00018779,2]
[377969358,1754635846207,-557.1,0.00018779,2]
[377969359,1754635846218,-400.0,0.00018779,2]
[377969360,1754635846227,-400.0,0.00018779,2]
[377969361,1754635846236,-400.0,0.00018779,2]
[377969362,1754635846245,-400.0,0.00018779,2]
[377969363,1754635846255,-400.0,0.00018779,2]
[377969364,1754635846265,-916.31,0.00018779,2]
[377969365,1754635846276,-400.0,0.00018779,2]
[377969366,1754635846285,-400.0,0.00018779,2]
[377969367,1754635846295,-455.4,0.00018779,2]
[377969368,1754635846306,-400.0,0.00018779,2]
[377969369,1754635846316,-400.0,0.00018779,2]
[377969370,1754635846327,-400.0,0.00018779,2]
[377969371,1754635846337,-522.4,0.00018779,2]
[377969372,1754635846347,-400.0,0.00018779,2]
[377969373,1754635846356,-400.0,0.00018779,2]
[377969374,1754635846366,-400.0,0.00018779,2]
[377969375,1754635846377,-403.32,0.00018779,2]
[377969376,1754635846386,-449.85,0.00018779,2]
[377969377,1754635846396,-400.0,0.00018779,2]
[377969378,1754635846405,-494.23,0.00018779,2]
[377969379,1754635846414,-401.37922636,0.00018779,2]
[377969380,1754635846423,-400.0,0.00018779,2]
[377969381,1754635846433,-1699.79,0.00018779,2]
[377969382,1754635846443,-554.4035547,0.00018779,2]
[377969383,1754635855251,-185.10958676,0.00018196,2]
[377969384,1754635868618,250.0,0.00017976,2]
[377969385,1754636049719,150.54,0.00017858,2]
[377969386,1754636051051,150.54,0.00026787,120]
[377969391,1754636120104,181.0,0.000173,2]
[377969394,1754636183582,404.62707088,0.0003,120]
[377969396,1754636205785,507.0,0.00017196,2]
[377969399,1754636225336,175.0,0.00017853,7]
[377969400,1754636262427,500.0,0.00017291,2]
[377969402,1754636265977,152.97,0.00017841,2]
[377969404,1754636453447,666.0,0.00017844,3]
[377969407,1754636654811,177.0,0.000163,2]
[377969408,1754636655203,174.0,0.0001748,2]
[377969412,1754636686336,271.83,0.00015068,2]
[377969413,1754636686546,271.83,0.00016655,2]
[377969415,1754636764563,1000.0,0.00017766,2]
[377969426,1754636865151,273.9,0.00013699,2]
[377969429,1754636887041,500.0,0.00017,2]
[377969441,1754637031793,-151.0,0.00018143,2]
[377969442,1754637031804,-151.0,0.00018151,2]
[377969443,1754637031814,-159.18250921,0.00018178,2]
[377969444,1754637031825,-271.83,0.00018242,2]
[377969445,1754637031834,-1000.0,0.00018278,4]
[377969446,1754637031845,-163.87,0.00018313,2]
[377969447,1754637031855,-641.14396388,0.00018399,2]
[377969448,1754637031865,-507.0,0.00018489,2]
[377969449,1754637031875,-1200.0,0.00018589,2]
[377969450,1754637031884,-791.89134,0.0001859,2]
[377969451,1754637031894,-791.89135,0.0001859,2]
[377969452,1754637031904,-791.89134,0.0001859,2]
[377969453,1754637031914,-791.89135,0.0001859,2]
[377969454,1754637031924,-791.89135,0.0001859,2]
[377969455,1754637031933,-791.89135,0.0001859,2]
[377969456,1754637031942,-2960.8670273,0.0001859,2]
[377969457,1754637031969,-752.78990962,0.0001859,2]
[377969458,1754637032084,-6286.33306308,0.0001859,2]
[377969459,1754637032097,-150.99,0.0001859,2]
[377969460,1754637032108,-150.99,0.0001859,2]
[377969461,1754637032119,-170.0,0.0001867,2]
[377969462,1754637032130,-9999.99,0.00018678,2]
[377969463,1754637032141,-999.99,0.00018678,2]
[377969464,1754637032150,-9999.99,0.00018678,2]
[377969465,1754637032160,-1421.71693692,0.00018679,2]
[377969466,1754637032180,-1158.00470636,0.00018679,2]
[377969467,1754637032190,-155.36964721,0.00018679,2]
[377969468,1754637032200,-267.46074303,0.00018693,2]
[377969469,1754637032210,-154.99,0.000187,2]
[377969470,1754637032219,-1749.66768097,0.00018704,2]
[377969471,1754637032231,-450.30494601,0.00018704,2]
[377969472,1754637032322,-379.7490163,0.00018704,2]
[377969474,1754637032332,-2579.72164328,0.00018728,2]
[377969476,1754637032343,-150.0,0.00018741,2]
[377969477,1754637032352,-150.0,0.00018751,2]
[377969478,1754637032362,-2579.72164328,0.00018753,2]
[377969479,1754637032372,-154.99,0.00018753,2]
[377969480,1754637032381,-160.0,0.00018768,2]
[377969481,1754637032391,-151.0,0.00018768,2]
[377969482,1754637032401,-150.0,0.00018771,2]
[377969483,1754637032410,-150.0,0.00018772,2]
[377969484,1754637032420,-500.0,0.00018773,2]
[377969485,1754637032429,-500.0,0.00018773,2]
[377969486,1754637032439,-563.5,0.00018775,2]
[377969487,1754637032449,-500.0,0.00018776,2]
[377969488,1754637032459,-500.0,0.00018776,2]
[377969489,1754637032469,-496.19356777,0.00018776,2]
[377969490,1754637032480,-150.0,0.00018777,2]
[377969491,1754637032492,-2579.72164328,0.00018777,2]
[377969492,1754637032504,-220.72496248,0.00018778,2]
[377969493,1754637032516,-400.0,0.00018778,2]
[377969494,1754637032527,-1760.27,0.00018778,2]
[377969496,1754637032540,-559.18,0.00018778,2]
[377969497,1754637032550,-1031.04,0.00018778,2]
[377969498,1754637032560,-660.56,0.00018778,2]
[377969499,1754637032571,-726.88,0.00018778,2]
[377969500,1754637032582,-833.99,0.00018778,2]
[377969501,1754637032594,-766.59,0.00018778,2]
[377969502,1754637032604,-1285.82,0.00018778,2]
[377969503,1754637032614,-923.11,0.00018778,2]
[377969504,1754637032624,-661.12,0.00018778,2]
[377969505,1754637032635,-1235.33,0.00018778,2]
[377969506,1754637032645,-1132.17,0.00018778,2]
[377969507,1754637032656,-655.6,0.00018778,2]
[377969508,1754637032667,-1281.36,0.00018778,2]
[377969509,1754637032677,-625.29,0.00018778,2]
[377969510,1754637032686,-1609.43,0.00018778,2]
[377969511,1754637032696,-1216.37,0.00018778,2]
[377969512,1754637032706,-400.0,0.00018778,2]
[377969513,1754637032715,-749.78,0.00018778,2]
[377969514,1754637032725,-1107.61,0.00018778,2]
[377969515,1754637032735,-1908.56,0.00018778,2]
[377969516,1754637032744,-400.0,0.00018778,2]
[377969517,1754637032754,-424.57,0.00018778,2]
[377969518,1754637032764,-804.44,0.00018778,2]
[377969519,1754637032773,-400.0,0.00018778,2]
[377969520,1754637032783,-1085.37,0.00018778,2]
[377969521,1754637032793,-400.0,0.00018778,2]
[377969522,1754637032802,-918.26,0.00018778,2]
[377969523,1754637032813,-1395.24,0.00018778,2]
[377969524,1754637032822,-400.0,0.00018778,2]
[377969525,1754637032831,-447.77,0.00018779,2]
[377969526,1754637032842,-368.774387,0.00018779,2]
[377969527,1754637032851,-438.248267,0.00018779,2]
[377969528,1754637032861,-400.0,0.00018779,2]
[377969529,1754637032870,-714.01,0.00018779,2]
[377969530,1754637032879,-400.0,0.00018779,2]
[377969531,1754637032888,-400.0,0.00018779,2]
[377969532,1754637032898,-465.65,0.00018779,2]
[377969533,1754637032907,-556.34,0.00018779,2]
[377969534,1754637032916,-528.74,0.00018779,2]
[377969535,1754637032925,-400.0,0.00018779,2]
[377969536,1754637032934,-400.0,0.00018779,2]
[377969537,1754637032943,-400.0,0.00018779,2]
[377969538,1754637032953,-400.0,0.00018779,2]
[377969539,1754637032962,-171.56981487,0.00018779,2]
[377969540,1754637032972,-783.62,0.00018779,2]
[377969541,1754637032981,-544.27,0.00018779,2]
[377969542,1754637032990,-622.52,0.00018779,2]
[377969543,1754637033000,-566.98,0.00018779,2]
[377969544,1754637033010,-437.68,0.00018779,2]
[377969545,1754637033020,-400.0,0.00018779,2]
[377969546,1754637033031,-400.0,0.00018779,2]
[377969547,1754637033042,-400.0,0.00018779,2]
[377969548,1754637033052,-475.32,0.00018779,2]
[377969549,1754637033062,-400.0,0.00018779,2]
[377969550,1754637033073,-670.74,0.00018779,2]
[377969551,1754637033083,-496.31,0.00018779,2]
[377969552,1754637033095,-491.3,0.00018779,2]
[377969553,1754637033105,-400.0,0.00018779,2]
[377969554,1754637033116,-400.0,0.00018779,2]
[377969555,1754637033126,-467.06,0.00018779,2]
[377969556,1754637033137,-400.0,0.00018779,2]
[377969557,1754637033147,-446.16,0.00018779,2]
[377969558,1754637033158,-400.0,0.00018779,2]
[377969559,1754637033168,-400.0,0.00018779,2]
[377969560,1754637033178,-707.5,0.00018779,2]
[377969561,1754637033188,-400.0,0.00018779,2]
[377969562,1754637033199,-400.0,0.00018779,2]
[377969563,1754637033209,-400.0,0.00018779,2]
[377969564,1754637033219,-40.75074024,0.00018779,2]
[377969578,1754637039981,-400.0,0.00018778,2]
[377969579,1754637039992,-443.2,0.00018778,2]
[377969580,1754637040001,-619.84925976,0.00018779,2]
[377969581,1754637040011,-183.73157,0.00018779,2]
[377969582,1754637040020,-627.05,0.00018779,2]
[377969583,1754637040033,-386.72021106,0.00018779,2]
[377969584,1754637040043,-400.0,0.00018779,2]
[377969585,1754637040053,-400.0,0.00018779,2]
[377969586,1754637040062,-400.0,0.00018779,2]
[377969587,1754637040072,-400.0,0.00018779,2]
[377969588,1754637040081,-759.52,0.00018779,2]
[377969589,1754637040091,-456.55,0.00018779,2]
[377969590,1754637040101,-400.0,0.00018779,2]
[377969591,1754637040110,-400.0,0.00018779,2]
[377969592,1754637040120,-770.94,0.00018779,2]
[377969593,1754637040129,-400.0,0.00018779,2]
[377969594,1754637040139,-400.0,0.00018779,2]
[377969595,1754637040148,-400.0,0.00018779,2]
[377969596,1754637040157,-622.73,0.00018779,2]
[377969597,1754637040167,-400.0,0.00018779,2]
[377969598,1754637040176,-480.67,0.00018779,2]
[377969599,1754637040187,-590.89,0.00018779,2]
[377969600,1754637040196,-175.652804,0.00018779,2]
[377969601,1754637040206,-499.69,0.00018779,2]
[377969602,1754637040215,-400.0,0.00018779,2]
[377969603,1754637040225,-400.0,0.00018779,2]
[377969604,1754637040235,-400.0,0.00018779,2]
[377969605,1754637040244,-400.0,0.00018779,2]
[377969606,1754637040255,-431.13,0.00018779,2]
[377969607,1754637040265,-400.0,0.00018779,2]
[377969608,1754637040275,-445.98,0.00018779,2]
[377969609,1754637040285,-858.86,0.00018779,2]
[377969610,1754637040295,-400.0,0.00018779,2]
[377969611,1754637040305,-400.0,0.00018779,2]
[377969612,1754637040315,-400.0,0.00018779,2]
[377969613,1754637040324,-400.0,0.00018779,2]
[377969614,1754637040334,-400.0,0.00018779,2]
[377969615,1754637040343,-400.0,0.00018779,2]
[377969616,1754637040354,-400.0,0.00018779,2]
[377969617,1754637040365,-400.0,0.00018779,2]
[377969618,1754637040375,-704.64,0.00018779,2]
[377969619,1754637040384,-400.0,0.00018779,2]
[377969620,1754637040394,-400.0,0.00018779,2]
[377969621,1754637040403,-402.32005835,0.00018779,2]
[377969622,1754637040413,-400.0,0.00018779,2]
[377969623,1754637040423,-400.0,0.00018779,2]
[377969624,1754637040433,-455.4,0.00018779,2]
[377969625,1754637040443,-400.0,0.00018779,2]
[377969626,1754637040453,-400.0,0.00018779,2]
[377969627,1754637040463,-291.11330482,0.00018779,2]
[377969628,1754637040473,-400.0,0.00018779,2]
[377969629,1754637040483,-400.0,0.00018779,2]
[377969631,1754637040495,-490.73,0.00018779,2]
[377969633,1754637040506,-400.0,0.00018779,2]
[377969635,1754637040516,-503.56,0.00018779,2]
[377969637,1754637040526,-400.0,0.00018779,2]
[377969639,1754637040537,-400.0,0.00018779,2]
[377969641,1754637040547,-615.89,0.00018779,2]
[377969643,1754637040557,-400.0,0.00018779,2]
[377969645,1754637040568,-628.37,0.00018779,2]
[377969647,1754637040578,-510.62,0.00018779,2]
[377969649,1754637040588,-400.0,0.00018779,2]
[377969651,1754637040598,-400.0,0.00018779,2]
[377969653,1754637040608,-400.0,0.00018779,2]
[377969655,1754637040618,-400.0,0.00018779,2]
[377969657,1754637040629,-485.3230944,0.00018779,2]
[377969660,1754637040640,-400.0,0.00018779,2]
[377969661,1754637040650,-583.44,0.00018779,2]
[377969663,1754637040659,-400.0,0.00018779,2]
[377969665,1754637040669,-400.0,0.00018779,2]
[377969667,1754637040679,-533.89,0.00018779,2]
[377969669,1754637040688,-400.0,0.00018779,2]
[377969671,1754637040698,-629.22,0.00018779,2]
[377969673,1754637040707,-630.31,0.00018779,2]
[377969676,1754637040717,-400.0,0.00018779,2]
[377969677,1754637040727,-400.0,0.00018779,2]
[377969679,1754637040737,-400.0,0.00018779,2]
[377969681,1754637040747,-400.0,0.00018779,2]
[377969683,1754637040756,-428.69,0.00018779,2]
[377969685,1754637040766,-426.42,0.00018779,2]
[377969687,1754637040776,-478.8,0.00018779,2]
[377969689,1754637040785,-500.0,0.00018779,2]
[377969691,1754637040795,-400.0,0.00018779,2]
[377969693,1754637040804,-400.0,0.00018779,2]
[377969694,1754637040814,-400.0,0.00018779,2]
[377969695,1754637040824,-878.13,0.00018779,2]
[377969696,1754637040833,-618.26,0.00018779,2]
[377969697,1754637040843,-400.0,0.00018779,2]
[377969698,1754637040852,-400.0,0.00018779,2]
[377969699,1754637040862,-400.0,0.00018779,2]
[377969700,1754637040872,-400.0,0.00018779,2]
[377969701,1754637040885,-1439.53,0.00018779,2]
[377969702,1754637040895,-435.14,0.00018779,2]
[377969703,1754637040904,-526.91,0.00018779,2]
[377969704,1754637040914,-400.0,0.00018779,2]
[377969705,1754637040924,-400.0,0.00018779,2]
[377969706,1754637040934,-185.36634962,0.00018779,2]
[377969707,1754637040943,-400.0,0.00018779,2]
[377969708,1754637040953,-673.76,0.00018779,2]
[377969709,1754637040962,-625.41,0.00018779,2]
[377969710,1754637040972,-400.0,0.00018779,2]
[377969711,1754637040981,-602.3,0.00018779,2]
[377969712,1754637040990,-400.0,0.00018779,2]
[377969713,1754637041000,-400.0,0.00018779,2]
[377969714,1754637041009,-400.0,0.00018779,2]
[377969715,1754637041019,-400.0,0.00018779,2]